bitfinex/quotes_BTCUSD_20230118
["timestamp","ask_amount","ask_price","bid_price","bid_amount"]
[1674060962045,0.485686,20590.0,20579.0,0.4543]
[1674060962302,0.485568,20595.0,20583.0,0.6]
[1674060962560,0.0485568,20594.0,20584.0,0.613067]
[1674060962835,0.0485568,20594.0,20585.0,0.811282]
[1674060962836,1.15712766,20593.0,20585.0,0.811282]
[1674060963091,0.24287777,20594.0,20586.0,0.783533]
[1674060963405,0.59820746,20593.0,20587.0,0.327298]
[1674060963623,1.26973012,20593.0,20587.0,0.327298]
[1674060963873,0.19432097,20593.0,20588.0,0.3]
[1674060964131,0.0485568,20594.0,20589.0,0.493081]
[1674060964389,0.485528,20597.0,20590.0,0.626486]
[1674060964685,0.485474,20599.0,20591.0,0.319878]
[1674060964910,0.485457,20600.0,20592.0,0.777193]
[1674060965176,0.49497002,20601.0,20593.0,0.34018]
[1674060965177,0.00955502,20601.0,20593.0,0.34018]
[1674060965436,0.47720169,20600.0,20594.0,0.310124]
[1674060965694,0.47720169,20600.0,20590.0,0.83268605]
[1674060965695,0.47720169,20599.0,20590.0,0.83268605]
[1674060965959,1.12621466,20598.0,20588.0,0.485703]
[1674060966196,1.12621466,20598.0,20589.0,0.485681]
[1674060966197,0.19432097,20597.0,20589.0,0.485681]
[1674060966458,0.19432097,20596.0,20590.0,0.328923]
[1674060966720,0.19432097,20596.0,20593.0,0.000355]
[1674060966978,0.15,20601.0,20594.0,1.300119]
[1674060967241,0.19432097,20601.0,20595.0,0.315669]
[1674060967503,0.47720169,20598.0,20593.0,0.000355]
[1674060967768,0.71998169,20596.0,20593.0,0.000355]
[1674060968036,2.60785166,20595.0,20593.0,0.000355]
[1674060968289,1.11964166,20594.0,20583.0,0.00019]
[1674060968610,0.971312,20591.0,20583.0,0.00019]
[1674060968800,0.68931507,20590.0,20584.0,0.15]
[1674060969071,0.19432097,20589.0,20585.0,1.457336]
[1674060969358,0.19432097,20588.0,20586.0,0.313709]
[1674060969617,0.19432097,20588.0,20583.0,0.971841]
[1674060969884,0.19432097,20587.0,20583.0,0.971651]
[1674060970135,0.19432097,20586.0,20581.0,0.15]
[1674060970398,0.51176097,20585.0,20579.0,0.635931]
[1674060970651,0.49949497,20584.0,20577.0,0.485961]
[1674060970908,0.19432097,20583.0,20578.0,0.15]
[1674060971200,0.19432097,20582.0,20578.0,0.15]
[1674060971943,0.5051891,20587.0,20579.0,0.321759]
[1674060972200,0.19432097,20587.0,20581.0,0.48588]
[1674060972451,1.15727066,20587.0,20578.0,0.485945]
[1674060972709,0.15,20585.0,20578.0,0.485945]
[1674060973004,0.19432097,20584.0,20578.0,0.485945]
[1674060973261,0.67152266,20583.0,20575.0,0.01224458]
[1674060973516,0.52544097,20582.0,20575.0,0.01224458]
[1674060973872,0.19432097,20581.0,20575.0,0.49826558]
[1674060974014,0.19432097,20581.0,20576.0,0.04702905]
[1674060974290,0.19432097,20581.0,20577.0,0.313004]
[1674060974553,0.12484,20588.0,20578.0,0.328981]
[1674060974806,0.31916097,20588.0,20581.0,0.485885]
[1674060975086,0.12484,20588.0,20582.0,0.647372]
[1674060975333,0.48566,20591.0,20583.0,0.481853]
[1674060975590,0.2386,20591.0,20584.0,0.62011]
[1674060975842,0.07334356,20590.0,20585.0,0.32178]
[1674060976095,0.27527,20590.0,20586.0,0.785762]
[1674060976351,0.27527,20590.0,20587.0,0.34015]
[1674060976630,0.30371686,20590.0,20586.0,0.485762]
[1674060976881,0.46959097,20590.0,20586.0,0.485762]
[1674060977131,0.27527,20590.0,20586.0,0.485762]
[1674060977656,0.27527,20590.0,20588.0,0.15]
[1674060977923,0.30371686,20590.0,20589.0,0.335514]
[1674060978180,0.27527,20590.0,20585.0,0.485773]
[1674060978436,0.38788097,20589.0,20585.0,0.485773]
[1674060978701,0.38788097,20589.0,20584.0,0.485804]
[1674060978702,0.29148097,20588.0,20584.0,0.485804]
[1674060979030,0.38788097,20587.0,20581.0,0.53291405]
[1674060979253,0.67090597,20586.0,20583.0,0.485832]
[1674060979502,0.33545,20586.0,20584.0,0.326395]
[1674060979771,0.33545,20586.0,20585.0,0.468808]
[1674060980032,0.33545,20586.0,20585.0,1.97320705]
[1674060980541,0.33545,20586.0,20585.0,2.27320705]
[1674060980794,0.33466,20586.0,20585.0,2.27320705]
[1674060981322,0.01609,20586.0,20585.0,2.87320705]
[1674060981598,0.01780855,20592.0,20586.0,0.17463]
[1674060981858,0.01780855,20592.0,20587.0,1.790315]
[1674060982119,0.01780855,20592.0,20588.0,0.622646]
[1674060982378,0.01780855,20592.0,20589.0,1.779814]
[1674060982635,0.01780855,20592.0,20591.0,0.15]
[1674060982907,0.01780855,20592.0,20591.0,1.93989]
[1674060983143,0.01780855,20592.0,20591.0,2.28691905]
[1674060983400,0.20965855,20592.0,20591.0,2.28691905]
[1674060983652,0.20965855,20592.0,20591.0,2.13691905]
[1674060983931,0.20965855,20592.0,20591.0,0.818592]
[1674060983932,0.21193855,20592.0,20591.0,0.818592]
[1674060984251,0.40625952,20592.0,20591.0,0.332943]
[1674060984443,0.23313241,20592.0,20588.0,0.485716]
[1674060984710,1.08015266,20591.0,20588.0,0.485716]
[1674060984959,1.30427766,20590.0,20583.0,0.48583]
[1674060985211,1.40750966,20589.0,20583.0,0.48583]
[1674060985472,0.36435097,20588.0,20583.0,0.48583]
[1674060985726,0.38712097,20587.0,20583.0,0.48583]
[1674060985980,0.38788097,20587.0,20584.0,0.31867]
[1674060986232,0.19356,20587.0,20585.0,0.348987]
[1674060986487,0.19356,20587.0,20586.0,0.329617]
[1674060987240,0.19356,20587.0,20586.0,0.485784]
[1674060987496,0.19356,20587.0,20586.0,1.7e-05]
[1674060987746,0.19356,20587.0,20586.0,0.785784]
[1674060988507,0.19356,20587.0,20586.0,0.935784]
[1674060988771,0.00919855,20592.0,20587.0,0.15]
[1674060989020,0.01780855,20592.0,20588.0,0.327195]
[1674060989273,0.11525855,20592.0,20589.0,0.495256]
[1674060989538,0.11525855,20592.0,20589.0,0.48569]
[1674060989788,0.11425855,20592.0,20589.0,0.48569]
[1674060990785,0.11425855,20592.0,20590.0,0.334854]
[1674060991036,0.11425855,20592.0,20589.0,0.48569]
[1674060991537,0.11425855,20592.0,20590.0,0.3]
[1674060991790,0.11425855,20592.0,20591.0,0.324705]
[1674060992043,0.11425855,20592.0,20591.0,1.110354]
[1674060993033,0.11326855,20592.0,20591.0,1.110354]
[1674060993517,0.11326855,20592.0,20591.0,0.624705]
[1674060994506,0.11326855,20592.0,20591.0,1.596003]
[1674060994754,0.11326855,20592.0,20591.0,0.324705]
[1674060995003,0.11326855,20592.0,20589.0,0.485682]
[1674060995267,0.92457169,20591.0,20587.0,0.485729]
[1674060995518,0.04173,20590.0,20587.0,0.485736]
[1674060995772,0.38814097,20590.0,20588.0,0.324556]
[1674060996037,0.19382,20590.0,20589.0,1.16929]
[1674060996776,0.03881,20590.0,20589.0,1.16929]
[1674060998267,0.03881,20590.0,20589.0,1.654986]
[1674060998783,0.00905258,20599.0,20589.0,2.12081505]
[1674060999036,0.01753258,20599.0,20590.0,0.96137712]
[1674060999319,0.40369355,20599.0,20592.0,1.942432]
[1674060999542,0.06027,20598.0,20593.0,0.624473]
[1674060999798,0.45719097,20598.0,20594.0,0.971132]
[1674061000053,0.93439266,20597.0,20592.0,0.25]
[1674061000317,0.24281,20593.0,20589.0,0.485688]
[1674061000572,0.24281,20593.0,20587.0,0.48573]
[1674061000573,0.581479,20592.0,20587.0,0.48573]
[1674061000820,0.401233,20591.0,20589.0,0.485689]
[1674061001072,0.26287,20591.0,20589.0,0.485689]
[1674061001322,0.45719097,20591.0,20589.0,0.485689]
[1674061001576,0.45719097,20591.0,20588.0,0.485699]
[1674061001577,0.73507169,20591.0,20588.0,0.485699]
[1674061001829,0.03315,20590.0,20587.0,0.485741]
[1674061002082,0.38815097,20590.0,20587.0,0.485741]
[1674061002336,0.19383,20590.0,20587.0,0.485741]
[1674061003117,0.73556266,20589.0,20581.0,0.04702905]
[1674061003348,0.15,20587.0,20583.0,0.485836]
[1674061003610,0.35338097,20586.0,20583.0,0.485836]
[1674061003861,0.45219097,20586.0,20583.0,0.485836]
[1674061004451,0.25787,20586.0,20584.0,0.325539]
[1674061004618,0.73507169,20585.0,20580.0,0.02186072]
[1674061004875,1.25953366,20584.0,20580.0,0.50775972]
[1674061005136,0.3376688,20586.0,20580.0,0.50775972]
[1674061005137,0.35739097,20583.0,20580.0,0.50775972]
[1674061005398,0.70726176,20582.0,20580.0,0.02186072]
[1674061005705,0.79256869,20581.0,20580.0,0.02186072]
[1674061005932,0.573237,20581.0,20580.0,0.50776372]
[1674061006184,0.25787,20581.0,20580.0,0.02186072]
[1674061006436,0.25787,20581.0,20580.0,0.50757672]
[1674061006688,0.25787,20581.0,20580.0,0.35757672]
[1674061006982,0.25787,20581.0,20580.0,0.84348472]
[1674061007193,0.25787,20581.0,20580.0,0.50776872]
[1674061008702,0.25787,20581.0,20580.0,0.02186072]
[1674061008957,0.25787,20581.0,20580.0,0.50776872]
[1674061009214,0.25787,20581.0,20580.0,0.84729172]
[1674061009477,0.25787,20581.0,20580.0,0.99729172]
[1674061009715,0.25787,20581.0,20580.0,1.34292604]
[1674061009969,0.25787,20581.0,20580.0,1.19292604]
[1674061010220,0.25787,20581.0,20580.0,1.33319972]
[1674061011215,0.25787,20581.0,20580.0,1.48319972]
[1674061011705,0.25787,20581.0,20580.0,1.78319972]
[1674061012476,0.3322441,20591.0,20581.0,0.25787]
[1674061012743,0.15,20594.0,20584.0,1.943256]
[1674061012999,0.47720169,20593.0,20585.0,0.621354]
[1674061013281,0.67152266,20593.0,20587.0,0.971466]
[1674061013513,0.15,20595.0,20587.0,0.971466]
[1674061013779,0.47720169,20594.0,20588.0,0.3]
[1674061014322,0.67152266,20594.0,20589.0,0.971354]
[1674061014903,0.67152266,20594.0,20589.0,0.485677]
[1674061015156,0.00905258,20599.0,20590.0,0.641113]
[1674061015417,0.00905258,20599.0,20589.0,0.485677]
[1674061015418,0.47720169,20596.0,20589.0,0.485677]
[1674061015693,0.47720169,20596.0,20586.0,0.485756]
[1674061015694,0.24281,20593.0,20586.0,0.485756]
[1674061015956,0.24284,20590.0,20589.0,0.25]
[1674061016215,1.04879269,20590.0,20586.0,0.485758]
[1674061016477,1.04879269,20590.0,20582.0,0.04563432]
[1674061016478,0.19432097,20590.0,20588.0,0.971406]
[1674061016733,0.3354935,20596.0,20589.0,0.328852]
[1674061016993,0.47720169,20593.0,20587.0,0.48573]
[1674061017276,0.24285,20590.0,20584.0,0.485813]
[1674061017552,0.53966197,20589.0,20585.0,0.97157]
[1674061017838,0.74977386,20588.0,20583.0,0.25]
[1674061018090,1.01324766,20587.0,20583.0,0.25]
[1674061018362,0.67152266,20586.0,20583.0,0.25]
[1674061018671,1.40542069,20585.0,20583.0,0.25]
[1674061018925,0.81956969,20584.0,20583.0,0.25]
[1674061019431,0.15,20587.0,20583.0,0.25]
[1674061019676,0.47720169,20586.0,20583.0,0.25]
[1674061020000,0.24287,20588.0,20583.0,0.25]
[1674061020001,0.47720169,20585.0,20583.0,0.25]
[1674061020196,0.31838,20584.0,20583.0,0.25]
[1674061020439,0.73788351,20587.0,20583.0,0.25013123]
[1674061020691,0.47720169,20584.0,20583.0,0.25]
[1674061020942,0.80697769,20584.0,20583.0,0.25]
[1674061021194,1.00129866,20584.0,20583.0,0.25]
[1674061021449,1.00129866,20584.0,20580.0,0.02186072]
[1674061021450,0.80697769,20584.0,20580.0,0.02186072]
[1674061021702,0.67152266,20584.0,20581.0,0.00013124]
[1674061021958,0.485706,20589.0,20582.0,0.971722]
[1674061022214,0.48562,20593.0,20583.0,0.479967]
[1674061022546,0.47720169,20589.0,20583.0,0.485826]
[1674061022771,0.47720169,20588.0,20583.0,0.485826]
[1674061023020,0.67152266,20587.0,20581.0,0.485869]
[1674061023279,0.99271966,20586.0,20581.0,0.485869]
[1674061023546,0.67152266,20586.0,20582.0,0.3]
[1674061023816,0.47720169,20586.0,20583.0,0.80782523]
[1674061024053,0.24284,20591.0,20584.0,0.200733]
[1674061024309,0.47720169,20590.0,20585.0,0.321828]
[1674061024579,0.47720169,20591.0,20586.0,1.472216]
[1674061024832,0.47720169,20591.0,20587.0,0.321914]
[1674061025084,0.47720169,20591.0,20588.0,0.485715]
[1674061026382,0.19432097,20593.0,20588.0,0.485715]
[1674061026620,0.15,20597.0,20589.0,0.636755]
[1674061026879,0.67152266,20596.0,20591.0,0.971279]
[1674061027138,0.47720169,20595.0,20591.0,0.971279]
[1674061027906,0.40179258,20599.0,20591.0,0.971279]
[1674061027907,0.15905258,20599.0,20592.0,0.37241232]
[1674061028162,0.00905258,20599.0,20594.0,1.942302]
[1674061028415,0.00905258,20599.0,20595.0,0.617451]
[1674061028667,0.00905258,20599.0,20596.0,0.204802]
[1674061028929,0.00905258,20599.0,20596.0,1.456578]
[1674061029192,0.00905258,20599.0,20597.0,0.320459]
[1674061029462,0.00905258,20599.0,20598.0,1.172708]
[1674061029982,0.00905258,20599.0,20598.0,1.658192]
[1674061030310,0.00905258,20599.0,20598.0,0.485484]
[1674061030498,0.00905258,20599.0,20598.0,0.785484]
[1674061030762,0.00905258,20599.0,20598.0,1.15872532]
[1674061031270,0.25221222,20610.0,20599.0,0.00905257]
[1674061031271,0.00960222,20610.0,20599.0,0.00905257]
[1674061031524,0.00960222,20610.0,20602.0,1.456146]
[1674061031779,0.20392319,20610.0,20603.0,0.627511]
[1674061032040,0.67152266,20609.0,20602.0,0.970764]
[1674061032334,0.47720169,20606.0,20601.0,0.25]
[1674061032603,1.31988169,20604.0,20603.0,0.15]
[1674061032879,1.64799,20604.0,20598.0,0.15]
[1674061033130,0.333501,20603.0,20592.0,0.15]
[1674061033388,0.44855166,20607.0,20592.0,0.15]
[1674061033389,0.19432097,20602.0,20598.0,0.48547]
[1674061033650,0.24265,20606.0,20599.0,0.333674]
[1674061033651,0.19432097,20606.0,20599.0,0.333674]
[1674061033920,0.15,20603.0,20601.0,0.970792]
[1674061034210,0.15910888,20608.0,20602.0,0.329235]
[1674061034462,0.15910888,20608.0,20603.0,1.162881]
[1674061034463,0.50318168,20608.0,20603.0,1.162881]
[1674061034716,0.00910888,20608.0,20604.0,0.301466]
[1674061034983,0.00910888,20608.0,20605.0,0.628796]
[1674061035241,0.00910888,20608.0,20606.0,1.163094]
[1674061035684,0.00910888,20608.0,20607.0,0.328762]
[1674061036199,0.97730154,20608.0,20603.0,0.485354]
[1674061036454,0.76925281,20607.0,20601.0,0.485395]
[1674061036710,0.98478566,20606.0,20600.0,0.485424]
[1674061036973,0.24268,20604.0,20598.0,0.48547]
[1674061037229,1.13747566,20603.0,20595.0,0.48554]
[1674061037486,0.99268966,20602.0,20595.0,0.48554]
[1674061037737,0.81156869,20601.0,20595.0,0.485542]
[1674061038056,0.79670569,20600.0,20595.0,0.15]
[1674061038250,0.47720169,20600.0,20596.0,0.485509]
[1674061038505,0.27790888,20608.0,20597.0,0.4855]
[1674061038758,0.47720169,20603.0,20600.0,0.333412]
[1674061039015,0.47720169,20603.0,20597.0,0.4855]
[1674061039016,0.332545,20602.0,20597.0,0.4855]
[1674061039286,0.01591089,20607.0,20600.0,0.53106432]
[1674061039535,0.47720169,20606.0,20601.0,0.311916]
[1674061039785,0.78860504,20605.0,20599.0,0.005]
[1674061040065,1.14634166,20604.0,20599.0,0.005]
[1674061040345,1.02010566,20603.0,20599.0,0.005]
[1674061040679,0.93664226,20602.0,20599.0,0.005]
[1674061040917,0.331385,20601.0,20599.0,0.005]
[1674061041158,0.337921,20600.0,20599.0,0.005]
[1674061041396,0.324842,20600.0,20599.0,0.005]
[1674061041639,0.92064792,20600.0,20599.0,0.005]
[1674061042120,0.39264,20607.0,20599.0,0.49046]
[1674061042347,0.81474504,20605.0,20600.0,0.330538]
[1674061042590,0.81474504,20605.0,20600.0,0.485426]
[1674061042858,0.24269,20603.0,20599.0,0.005]
[1674061043086,0.81989869,20602.0,20599.0,0.005]
[1674061043332,0.80048669,20601.0,20599.0,0.005]
[1674061043579,1.4051262,20600.0,20599.0,0.005]
[1674061043832,1.04876669,20600.0,20599.0,0.005]
[1674061044068,0.80603669,20600.0,20599.0,0.005]
[1674061044304,0.15,20599.0,20593.0,0.735592]
[1674061044630,0.24278,20595.0,20593.0,0.25]
[1674061044890,0.98079466,20594.0,20593.0,0.25]
[1674061045138,0.98079466,20594.0,20591.0,0.01]
[1674061045396,0.1178,20601.0,20592.0,0.97139165]
[1674061045656,1.15696366,20600.0,20592.0,0.971241]
[1674061045909,0.59289806,20599.0,20593.0,0.15]
[1674061046155,0.59289806,20599.0,20596.0,0.971048]
[1674061046156,0.19432097,20599.0,20596.0,0.971048]
[1674061046409,0.47720169,20598.0,20595.0,0.485536]
[1674061046652,0.2427,20602.0,20596.0,0.485524]
[1674061046908,0.47720169,20600.0,20595.0,0.485536]
[1674061047155,0.78224269,20599.0,20596.0,0.485514]
[1674061047406,0.47720169,20599.0,20596.0,0.485514]
[1674061047903,0.12035844,20602.0,20597.0,0.479534]
[1674061048112,0.47720169,20601.0,20598.0,0.677465]
[1674061048377,0.47720169,20600.0,20596.0,0.485514]
[1674061048633,0.52492186,20599.0,20598.0,0.485462]
[1674061048885,0.52492186,20599.0,20597.0,0.970989]
[1674061049146,0.47720169,20598.0,20597.0,0.970989]
[1674061049389,0.52969388,20598.0,20597.0,0.970989]
[1674061049635,0.24269,20603.0,20597.0,0.979489]
[1674061049890,0.47720169,20602.0,20598.0,0.0085]
[1674061050142,0.71992169,20600.0,20598.0,0.0085]
[1674061050394,0.47720169,20599.0,20597.0,0.0085]
[1674061050647,0.79841069,20598.0,20597.0,0.0085]
[1674061050927,0.47380169,20598.0,20597.0,0.0085]
[1674061051176,0.0814745,20604.0,20597.0,0.485507]
[1674061051429,0.15,20605.0,20598.0,0.337273]
[1674061051682,0.19432097,20605.0,20599.0,0.492721]
[1674061051931,0.67152266,20605.0,20600.0,1.464802]
[1674061052189,0.0194321,20604.0,20600.0,1.456302]
[1674061052429,0.47720169,20603.0,20601.0,0.0085]
[1674061052679,0.24265,20606.0,20601.0,0.0085]
[1674061052680,0.47720169,20602.0,20601.0,0.0085]
[1674061052931,0.67152266,20602.0,20601.0,0.0085]
[1674061053184,0.67152266,20602.0,20597.0,0.485494]
[1674061053185,1.04104096,20602.0,20597.0,0.485494]
[1674061053438,0.38413,20600.0,20598.0,0.485483]
[1674061053692,0.78968069,20599.0,20598.0,0.4856336]
[1674061053944,0.47720169,20599.0,20598.0,0.4856336]
[1674061054212,0.1414,20602.0,20598.0,0.4856336]
[1674061054471,0.47720169,20601.0,20598.0,0.970967]
[1674061054722,0.47720169,20600.0,20596.0,0.485515]
[1674061054989,0.1411,20597.0,20593.0,0.485587]
[1674061055238,0.99789766,20596.0,20593.0,0.485587]
[1674061055491,0.324305,20595.0,20593.0,0.00015064]
[1674061055813,0.67152266,20596.0,20592.0,0.485623]
[1674061056003,0.91431266,20594.0,20592.0,0.485623]
[1674061056254,0.314326,20593.0,20592.0,0.485623]
[1674061056509,0.1411,20597.0,20592.0,0.48577365]
[1674061056754,0.038385,20596.0,20592.0,0.48577365]
[1674061057023,0.57818097,20597.0,20592.0,0.48577365]
[1674061057265,0.1414,20599.0,20592.0,0.48577365]
[1674061057515,0.61860169,20596.0,20592.0,0.485623]
[1674061057764,0.47720169,20595.0,20592.0,0.485623]
[1674061058008,0.71999169,20594.0,20592.0,0.485623]
[1674061058261,0.09143127,20593.0,20592.0,0.97131387]
[1674061058516,0.47720169,20595.0,20592.0,0.97131387]
[1674061059011,0.47720169,20594.0,20592.0,6.587e-05]
[1674061059265,0.47720169,20593.0,20591.0,0.02113128]
[1674061059517,0.61820169,20592.0,20591.0,0.02113128]
[1674061059768,0.475525,20592.0,20591.0,0.02113128]
[1674061060013,0.95272669,20592.0,20591.0,0.99242928]
[1674061060265,0.2914,20595.0,20591.0,0.99242928]
[1674061060540,0.15,20598.0,20591.0,0.99242928]
[1674061060541,0.15,20599.0,20591.0,0.99242928]
[1674061060884,0.67152266,20598.0,20591.0,1.03872108]
[1674061061050,0.38418,20596.0,20591.0,0.99242928]
[1674061061301,0.67152266,20595.0,20591.0,0.02113128]
[1674061061543,0.55849396,20594.0,20591.0,0.02113128]
[1674061061800,0.79396269,20593.0,20591.0,0.99241128]
[1674061062040,0.50353713,20598.0,20591.0,0.99241128]
[1674061062312,0.11476971,20597.0,20591.0,0.99241128]
[1674061062563,0.78629237,20597.0,20591.0,0.99241128]
[1674061062835,0.141,20601.0,20592.0,0.3085]
[1674061063091,0.47720169,20600.0,20594.0,1.942244]
[1674061063416,0.47720169,20600.0,20595.0,0.0085]
[1674061063602,0.53406,20605.0,20596.0,1.456557]
[1674061063848,0.53406,20605.0,20597.0,0.0085]
[1674061063849,0.55573189,20604.0,20597.0,0.0085]
[1674061064094,0.47720169,20603.0,20599.0,0.970918]
[1674061064341,0.55220698,20602.0,20600.0,0.0085]
[1674061064586,0.0785302,20604.0,20600.0,0.979345]
[1674061064840,0.15,20607.0,20600.0,0.979345]
[1674061065092,0.47720169,20606.0,20600.0,0.979345]
[1674061065348,0.61366984,20606.0,20600.0,0.979345]
[1674061065600,0.15,20604.0,20600.0,0.979345]
[1674061065844,0.47720169,20604.0,20600.0,0.979345]
[1674061066083,0.15910888,20608.0,20601.0,0.15]
[1674061066331,0.47720169,20607.0,20603.0,0.485363]
[1674061066580,0.47720169,20606.0,20603.0,0.485363]
[1674061066833,0.47720169,20605.0,20603.0,0.485363]
[1674061067090,0.47720169,20604.0,20601.0,0.485398]
[1674061067336,0.99598566,20603.0,20600.0,0.493926]
[1674061067587,0.564169,20602.0,20599.0,0.485447]
[1674061067840,0.11847058,20602.0,20600.0,0.485425]
[1674061068093,0.04772017,20604.0,20600.0,0.485425]
[1674061068345,0.45685981,20607.0,20601.0,0.00043247]
[1674061068346,0.06421981,20607.0,20601.0,0.00043247]
[1674061068592,0.67152266,20607.0,20602.0,1.45611]
[1674061068855,0.47720169,20606.0,20602.0,0.97074]
[1674061069104,0.47720169,20605.0,20602.0,0.48537]
[1674061069348,0.47720169,20604.0,20602.0,0.48580244]
[1674061069612,0.38687217,20603.0,20602.0,0.48537]
[1674061069860,0.05874698,20606.0,20602.0,0.48537]
[1674061070108,0.47720169,20605.0,20602.0,0.48537]
[1674061070372,0.00910888,20608.0,20602.0,0.48537]
[1674061070622,0.68063154,20608.0,20602.0,0.48537]
[1674061070866,0.44605985,20608.0,20602.0,0.48537]
[1674061071114,0.20342985,20608.0,20602.0,0.48537]
[1674061071353,0.21978245,20610.0,20603.0,0.34432097]
[1674061071608,0.51370816,20610.0,20605.0,1.455948]
[1674061071865,0.3,20612.0,20606.0,0.19432097]
[1674061072141,0.01008257,20613.0,20607.0,1.98360697]
[1674061072394,0.01008257,20613.0,20608.0,0.38203497]
[1674061072641,0.01008257,20613.0,20609.0,1.64995997]
[1674061072888,0.01008257,20613.0,20609.0,1.64997097]
[1674061073142,0.47720169,20612.0,20609.0,1.64997097]
[1674061073400,0.01008257,20613.0,20609.0,0.970426]
[1674061073650,0.01008257,20613.0,20609.0,1.64997097]
[1674061074171,0.67056024,20613.0,20609.0,1.45565]
[1674061074439,0.47720169,20612.0,20609.0,0.970426]
[1674061074720,0.54425771,20611.0,20609.0,0.970426]
[1674061074935,0.47720169,20610.0,20609.0,0.970426]
[1674061075206,0.43593855,20613.0,20609.0,0.970426]
[1674061075207,0.25266257,20613.0,20609.0,0.970426]
[1674061075466,0.11299494,20613.0,20610.0,0.19432097]
[1674061075713,0.01008257,20613.0,20611.0,1.605531]
[1674061076066,0.01008257,20613.0,20611.0,1.79985197]
[1674061076469,0.01008257,20613.0,20612.0,0.46256]
[1674061076704,0.01008257,20613.0,20612.0,0.947714]
[1674061076955,5.7e-07,20613.0,20612.0,0.947714]
[1674061077212,0.00988136,20617.0,20613.0,0.15]
[1674061077461,0.00988136,20620.0,20613.0,0.15]
[1674061077462,0.00988136,20620.0,20614.0,0.40285397]
[1674061077709,0.00988136,20620.0,20615.0,0.80682797]
[1674061077710,3.6e-07,20620.0,20615.0,0.80682797]
[1674061077957,0.0001,20622.0,20616.0,0.40282797]
[1674061078221,0.0001,20622.0,20617.0,1.96184697]
[1674061078474,0.15,20630.0,20618.0,0.70280397]
[1674061078475,0.3,20630.0,20618.0,0.70280397]
[1674061078727,0.49220169,20629.0,20621.0,1.939712]
[1674061078994,0.47720169,20628.0,20622.0,0.19432097]
[1674061079248,0.49220169,20629.0,20623.0,0.19432097]
[1674061079499,0.13,20630.0,20624.0,0.52694097]
[1674061079777,0.13,20630.0,20625.0,1.83694897]
[1674061079778,0.158,20630.0,20625.0,1.83694897]
[1674061080025,0.50520169,20630.0,20626.0,0.19432097]
[1674061080280,0.06552017,20629.0,20627.0,0.969592]
[1674061080802,0.15,20635.0,20628.0,0.52866297]
[1674061081288,0.17035226,20636.0,20630.0,0.484728]
[1674061081291,0.47720169,20634.0,20630.0,1.454184]
[1674061081547,0.47720169,20634.0,20631.0,0.19432097]
[1674061081801,0.02035226,20636.0,20631.0,0.19432097]
[1674061082051,0.49755395,20636.0,20632.0,1.16368697]
[1674061082302,0.77037671,20635.0,20632.0,0.969366]
[1674061082550,0.76830169,20634.0,20629.0,0.484739]
[1674061082804,0.38382,20630.0,20622.0,0.4849]
[1674061083061,0.24245,20623.0,20621.0,0.484919]
[1674061083322,0.98213167,20622.0,20619.0,0.485045]
[1674061083622,0.38391,20620.0,20619.0,6e-05]
[1674061083848,1.37032367,20620.0,20619.0,6e-05]
[1674061084106,0.15,20621.0,20619.0,6e-05]
[1674061084354,0.6,20628.0,20619.0,0.19631566]
[1674061084355,0.1413,20627.0,20619.0,0.19631566]
[1674061084607,0.47720169,20622.0,20620.0,0.19432097]
[1674061084853,0.47720169,20621.0,20618.0,0.485002]
[1674061085102,0.38376,20623.0,20618.0,0.485002]
[1674061085103,0.52492186,20620.0,20618.0,2e-06]
[1674061085358,0.337627,20619.0,20618.0,0.485011]
[1674061085613,0.0337627,20619.0,20617.0,0.485014]
[1674061085869,0.39245,20623.0,20617.0,0.485014]
[1674061086176,0.47720169,20622.0,20617.0,0.485014]
[1674061086664,0.24243,20625.0,20618.0,0.333415]
[1674061086923,0.53499769,20624.0,20620.0,0.484963]
[1674061087184,0.53499769,20624.0,20621.0,0.00092063]
[1674061087479,0.523147,20629.0,20622.0,0.969838]
[1674061087480,0.141,20628.0,20622.0,0.969838]
[1674061087733,0.47720169,20624.0,20622.0,0.484919]
[1674061088249,0.47720169,20624.0,20622.0,0.00092059]
[1674061088509,0.47509297,20629.0,20622.0,0.00092059]
[1674061088993,0.47509297,20629.0,20617.0,6e-05]
[1674061088994,0.71963169,20625.0,20617.0,6e-05]
[1674061088995,0.61860169,20623.0,20617.0,6e-05]
[1674061089276,0.24253,20618.0,20617.0,6e-05]
[1674061089527,1.32587483,20618.0,20617.0,6e-05]
[1674061089776,0.325719,20618.0,20617.0,6e-05]
[1674061090042,0.38379,20620.0,20617.0,6e-05]
[1674061090043,0.24248,20620.0,20617.0,6e-05]
[1674061090277,0.484863,20625.0,20617.0,6e-05]
[1674061090524,0.92403146,20624.0,20617.0,6e-05]
[1674061090780,0.2425,20619.0,20617.0,6e-05]
[1674061091029,0.80442969,20618.0,20617.0,6e-05]
[1674061091347,0.80442969,20618.0,20603.0,1.335354]
[1674061091348,1.63376366,20618.0,20603.0,1.335354]
[1674061091542,0.24255,20615.0,20603.0,1.335356]
[1674061091810,1.01111836,20614.0,20603.0,0.735356]
[1674061092061,0.727774,20611.0,20599.0,0.485443]
[1674061092309,0.53391667,20610.0,20599.0,0.96264469]
[1674061092557,0.19432097,20609.0,20600.0,0.623356]
[1674061092802,0.67152266,20608.0,20601.0,0.189477]
[1674061093041,0.19432097,20607.0,20602.0,0.330613]
[1674061093302,0.19432097,20607.0,20600.0,0.776832]
[1674061093303,0.65767817,20617.0,20603.0,1.761482]
[1674061093552,0.65767817,20617.0,20604.0,0.478577]
[1674061093553,0.96238569,20611.0,20604.0,0.478577]
[1674061093822,0.47720169,20611.0,20604.0,0.485342]
[1674061094068,0.19432097,20611.0,20606.0,0.485293]
[1674061094321,0.485086,20615.0,20607.0,0.346487]
[1674061094564,0.485158,20612.0,20601.0,0.6]
[1674061094814,0.81855753,20612.0,20600.0,0.1407]
[1674061095083,0.81855753,20612.0,20599.0,0.4806957]
[1674061095084,0.5277205,20611.0,20599.0,0.4806957]
[1674061095329,0.19432097,20610.0,20601.0,0.1407]
[1674061095584,0.19432097,20609.0,20604.0,0.7414]